bitfinex/quotes_SOLUSD_20251207
["timestamp","ask_amount","ask_price","bid_price","bid_amount"]
[1765130508740,9.72125689,135.14,135.09,15.60246418]
[1765130508938,0.66,135.13,135.09,17.92367787]
[1765130509335,0.66,135.13,135.09,15.60246418]
[1765130510253,0.66,135.13,135.09,17.92367787]
[1765130511656,0.66,135.13,135.1,2.32121369]
[1765130511817,0.68,135.15,135.11,2.32121369]
[1765130512017,0.68,135.16,135.12,15.60082889]
[1765130513348,0.68,135.16,135.13,2.32121369]
[1765130513847,0.68,135.16,135.12,36.42411481]
[1765130515753,0.68,135.18,135.14,2.32121369]
[1765130516053,0.66,135.17,135.14,2.32121369]
[1765130516623,0.66,135.17,135.15,7.39918608]
[1765130517353,8.05824617,135.17,135.14,8.2]
[1765130517558,11.68202792,135.17,135.14,8.2]
[1765130517770,0.66,135.16,135.14,8.2]
[1765130518653,0.66,135.16,135.14,15.59970447]
[1765130519764,0.66,135.16,135.14,8.2]
[1765130519970,0.66,135.16,135.12,3.62378175]
[1765130520261,0.66,135.16,135.13,8.2]
[1765130520430,0.66,135.16,135.1,35.49300006]
[1765130520431,4.28378175,135.16,135.11,3.62378175]
[1765130520636,0.66,135.16,135.12,8.2]
[1765130520835,0.66,135.15,135.12,15.60064271]
[1765130521136,0.66,135.17,135.14,3.62378175]
[1765130521460,0.66,135.17,135.12,37.72649669]
[1765130521461,0.66,135.16,135.12,37.72649669]
[1765130521761,0.66,135.16,135.12,34.10271494]
[1765130522059,0.66,135.16,135.12,37.72649669]
[1765130523348,11.02086639,135.19,135.13,4.30378175]
[1765130523562,4.28378175,135.18,135.13,3.62378175]
[1765130523958,0.66,135.17,135.13,3.62378175]
[1765130524465,0.66,135.17,135.14,25.89906762]
[1765130526657,11.02044712,135.2,135.15,15.59872537]
[1765130526856,0.66,135.18,135.15,15.59872537]
[1765130527370,24.508864,135.21,135.17,3.62378175]
[1765130527371,0.66,135.21,135.17,3.62378175]
[1765130527555,0.66,135.21,135.18,3.62378175]
[1765130527958,0.66,135.21,135.19,3.62378175]
[1765130528275,0.1,135.22,135.2,3.62378175]
[1765130528464,0.1,135.22,135.21,3.62378175]
[1765130528660,0.1,135.22,135.21,11.01968441]
[1765130528880,0.1,135.22,135.21,11.69968441]
[1765130530080,0.1,135.22,135.21,11.01968441]
[1765130530261,0.1,135.22,135.21,11.69968441]
[1765130531275,0.1,135.22,135.21,19.89968441]
[1765130532776,0.1,135.22,135.21,25.87873748]
[1765130533357,0.66,135.27,135.21,60.67735815]
[1765130533606,10.26283482,135.27,135.21,42.19452333]
[1765130533767,9.60283482,135.25,135.2,8.2]
[1765130534182,0.66,135.24,135.2,8.2]
[1765130534575,0.66,135.24,135.2,17.80283482]
[1765130534880,0.66,135.24,135.18,16.988864]
[1765130534881,9.60283482,135.21,135.18,15.59716309]
[1765130535092,8.05432098,135.24,135.18,15.59716309]
[1765130535258,9.60283482,135.2,135.18,15.59716309]
[1765130535875,0.66,135.19,135.18,15.59716309]
[1765130536084,0.66,135.19,135.16,25.89480815]
[1765130536387,10.26283482,135.19,135.16,15.59863865]
[1765130536773,0.66,135.18,135.16,15.59863865]
[1765130537585,0.66,135.18,135.16,8.2]
[1765130537990,10.26283482,135.18,135.15,7.39901753]
[1765130538460,0.66,135.17,135.15,7.39901753]
[1765130538667,0.66,135.17,135.14,15.59958676]
[1765130540195,0.66,135.17,135.14,25.20242158]
[1765130540798,0.66,135.17,135.14,25.91242158]
[1765130541391,0.72,135.19,135.16,9.60283482]
[1765130542390,0.72,135.19,135.16,7.39863865]
[1765130546116,0.72,135.19,135.15,9.60283482]
[1765130546293,0.72,135.19,135.15,17.00190375]
[1765130546494,0.72,135.19,135.15,17.71190375]
[1765130547725,8.11712047,135.19,135.15,7.39906893]
[1765130547915,8.11712047,135.19,135.1,8.2]
[1765130547916,9.60283482,135.16,135.1,8.2]
[1765130548108,9.60283482,135.14,135.1,15.60190339]
[1765130548313,9.60283482,135.16,135.11,9.60283482]
[1765130548707,0.72,135.15,135.11,9.60283482]
[1765130549120,7.39712047,135.19,135.14,9.60283482]
[1765130549319,0.72,135.18,135.15,9.60283482]
[1765130549730,0.72,135.18,135.15,17.00158229]
[1765130550225,0.72,135.18,135.15,7.39874747]
[1765130551736,16.99891432,135.21,135.15,17.71158229]
[1765130551939,0.72,135.2,135.15,17.00158229]
[1765130552234,0.72,135.2,135.15,35.49954751]
[1765130552412,0.72,135.2,135.16,10.31283482]
[1765130552614,0.72,135.2,135.17,8.2]
[1765130552929,9.60283482,135.24,135.18,9.60283482]
[1765130553119,0.72,135.23,135.18,0.71]
[1765130553717,0.72,135.23,135.19,7.39699681]
[1765130554725,11.73623956,135.23,135.19,7.39699681]
[1765130555139,0.72,135.22,135.19,7.39699681]
[1765130555734,0.72,135.22,135.2,8.2]
[1765130556870,8.80994492,135.27,135.2,8.2]
[1765130556871,0.72,135.25,135.2,8.91]
[1765130557026,4.34140073,135.27,135.21,4.33140073]
[1765130557223,0.72,135.27,135.21,4.33140073]
[1765130557458,0.72,135.27,135.21,3.62140073]
[1765130557634,0.72,135.27,135.22,0.71]
[1765130557832,11.73412409,135.27,135.23,15.59480884]
[1765130558248,0.72,135.26,135.23,15.59480884]
[1765130560183,3.62140073,135.25,135.21,7.39574973]
[1765130560492,8.11321761,135.26,135.21,8.2]
[1765130560493,4.34140073,135.24,135.21,8.2]
[1765130561098,0.72,135.23,135.21,8.2]
[1765130561656,3.62140073,135.22,135.18,7.3973854]
[1765130561849,3.62140073,135.21,135.18,8.2]
[1765130562312,0.72,135.2,135.18,8.2]
[1765130562498,0.72,135.2,135.18,15.59744252]
[1765130563056,0.72,135.2,135.18,7.39744252]
[1765130563253,0.72,135.2,135.18,15.59744252]
[1765130563473,0.72,135.2,135.17,7.39809129]
[1765130563680,0.72,135.2,135.18,8.2]
[1765130564861,17.72925182,135.2,135.18,8.2]
[1765130565071,0.72,135.19,135.15,7.39898245]
[1765130565286,0.72,135.19,135.16,8.2]
[1765130565464,0.72,135.19,135.16,15.59841835]
[1765130565980,17.7296212,135.19,135.16,8.2]
[1765130566392,0.72,135.18,135.16,8.2]
[1765130567066,0.72,135.18,135.15,8.2]
[1765130567876,8.11764801,135.18,135.15,8.2]
[1765130568258,0.72,135.17,135.15,15.59896321]
[1765130568458,18.49104776,135.21,135.15,15.59896321]
[1765130568459,17.72858251,135.21,135.16,0.71]
[1765130568685,17.0082635,135.22,135.16,10.32253121]
[1765130568986,0.72,135.2,135.16,10.32253121]
[1765130569282,0.72,135.21,135.17,9.61253121]
[1765130569481,0.72,135.21,135.18,8.2]
[1765130569786,0.72,135.21,135.18,15.59701203]
[1765130570076,0.72,135.23,135.18,16.30701203]
[1765130570281,0.72,135.23,135.19,0.71]
[1765130571480,0.69,135.24,135.19,10.32253121]
[1765130571689,7.3935207,135.26,135.21,7.39590266]
[1765130571891,0.69,135.26,135.22,17.81253121]
[1765130572182,0.69,135.25,135.22,17.81253121]
[1765130572382,0.69,135.27,135.22,17.81253121]
[1765130573191,0.69,135.27,135.22,18.52253121]
[1765130574064,0.69,135.27,135.23,7.39480884]
[1765130575369,17.69531811,135.27,135.22,15.59520548]
[1765130575889,0.69,135.26,135.23,8.2]
[1765130576779,8.08319389,135.26,135.23,8.2]
[1765130577174,14.28826584,135.26,135.24,8.2]
[1765130577372,0.69,135.29,135.24,14.40507195]
[1765130577685,0.69,135.3,135.24,14.40507195]
[1765130577864,0.69,135.3,135.25,6.91507195]
[1765130578386,0.69,135.3,135.25,0.71]
[1765130578985,8.08139785,135.3,135.25,8.10339404]
[1765130579362,0.69,135.3,135.26,6.91507195]
[1765130579572,7.39059053,135.31,135.27,8.2]
[1765130579772,22.61393595,135.32,135.27,8.91]
[1765130579773,7.48999559,135.32,135.27,8.91]
[1765130579979,0.69,135.31,135.27,15.11507195]
[1765130580680,0.69,135.31,135.27,22.50741069]
[1765130581191,0.69,135.31,135.27,16.30233874]
[1765130581595,0.69,135.31,135.27,16.26233874]
[1765130582382,0.1,135.32,135.3,6.20507195]
[1765130582573,0.1,135.32,135.31,8.2]
[1765130582777,0.1,135.32,135.31,15.59043677]
[1765130583465,0.1,135.32,135.31,16.26043677]
[1765130583661,0.1,135.32,135.31,22.46550872]
[1765130584475,1e-08,135.32,135.31,31.27545364]
[1765130584699,1e-08,135.32,135.31,36.63058119]
[1765130584945,1e-08,135.32,135.31,19.18242159]
[1765130585078,1e-08,135.32,135.31,27.38242159]
[1765130587306,0.1,135.36,135.31,85.12273729]
[1765130587481,0.1,135.36,135.35,11.12198482]
[1765130587799,0.1,135.36,135.35,19.99198482]
[1765130587983,0.1,135.37,135.35,19.99198482]
[1765130588180,0.1,135.37,135.36,11.79198482]
[1765130588579,0.7,135.43,135.37,8.80994492]
[1765130588790,0.7,135.43,135.4,7.38552437]
[1765130588995,9.69466854,135.46,135.41,8.18]
[1765130589218,7.38262864,135.46,135.41,8.18]
[1765130589396,9.69391224,135.47,135.41,8.85]
[1765130589598,24.508864,135.49,135.41,10.4920399]
[1765130589806,9.69336852,135.48,135.41,10.4920399]
[1765130590010,1.8120399,135.46,135.41,8.85]
[1765130590207,7.38132862,135.48,135.41,8.85]
[1765130590392,7.38132862,135.48,135.41,11.1620399]
[1765130590713,6.18377149,135.5,135.43,22.49263549]
[1765130591007,6.18377149,135.47,135.43,8.18]
[1765130591512,0.7,135.46,135.43,8.18]
[1765130592082,0.7,135.47,135.43,22.41758269]
[1765130592289,0.7,135.47,135.44,6.18377149]
[1765130592531,0.7,135.49,135.44,6.85377149]
[1765130592694,7.37906036,135.52,135.47,6.18377149]
[1765130592897,7.37906036,135.52,135.48,8.2]
[1765130592898,8.07906036,135.52,135.48,8.2]
[1765130593234,8.07906036,135.52,135.49,6.18377149]
[1765130593235,0.7,135.52,135.49,6.18377149]
[1765130593395,0.7,135.55,135.5,0.67]
[1765130593594,0.7,135.56,135.52,6.18377149]
[1765130593898,6.18377149,135.55,135.48,8.05112011]
[1765130594102,42.12391759,135.58,135.5,6.18377149]
[1765130594103,0.7,135.54,135.5,6.18377149]
[1765130594310,0.7,135.54,135.51,6.18377149]
[1765130594616,0.7,135.57,135.52,8.2]
[1765130594799,24.3854684,135.57,135.52,8.2]
[1765130594996,24.3854684,135.57,135.52,15.05377149]
[1765130595202,0.7,135.56,135.52,15.05377149]
[1765130595402,7.37585029,135.58,135.53,6.85377149]
[1765130595603,37.87064616,135.61,135.55,6.18377149]
[1765130595604,0.7,135.59,135.55,6.18377149]
[1765130595800,0.7,135.59,135.56,8.2]
[1765130596387,0.7,135.59,135.55,8.2]
[1765130596589,6.88377149,135.59,135.55,8.2]
[1765130596803,7.37626318,135.57,135.54,8.2]
[1765130597196,0.7,135.56,135.51,14.23290284]
[1765130597399,0.7,135.56,135.52,8.18]
[1765130597595,6.88377149,135.56,135.51,7.37913135]
[1765130597800,0.7,135.56,135.52,15.55879124]
[1765130598003,0.7,135.55,135.52,15.55879124]
[1765130598302,0.7,135.55,135.52,15.55884838]
[1765130598507,0.7,135.55,135.52,8.18]
[1765130598718,6.88377149,135.55,135.5,7.38003325]
[1765130599021,6.18377149,135.52,135.48,8.18]
[1765130599188,18.44610049,135.53,135.48,8.18]
[1765130599388,18.44610049,135.53,135.46,7.38219857]
[1765130599389,19.14610049,135.53,135.47,8.2]
[1765130599598,0.7,135.52,135.47,14.38377149]
[1765130599802,6.88377149,135.52,135.47,14.38377149]
[1765130600330,0.7,135.51,135.47,14.38377149]
[1765130600627,0.7,135.51,135.47,21.76545693]
[1765130600815,6.18377149,135.54,135.48,6.18377149]
[1765130600995,14.23112302,135.55,135.49,6.18377149]
[1765130601191,6.85377149,135.55,135.49,6.18377149]
[1765130601395,0.67,135.54,135.5,8.2]
[1765130601826,6.85377149,135.54,135.48,6.68377149]
[1765130602007,6.85377149,135.54,135.48,14.88377149]
[1765130602211,0.67,135.53,135.48,14.88377149]
[1765130602593,7.37952918,135.51,135.48,0.5]
[1765130602823,6.18377149,135.5,135.45,7.38274175]
[1765130603012,6.18377149,135.49,135.45,15.58274175]
[1765130603223,0.67,135.5,135.47,6.18377149]
[1765130603404,0.67,135.5,135.47,7.38132369]
[1765130603608,6.18377149,135.49,135.45,8.2]
[1765130604195,0.67,135.48,135.45,8.2]
[1765130604404,6.85377149,135.48,135.43,13.56755934]
[1765130604592,6.85377149,135.48,135.43,15.58378785]
[1765130604794,0.67,135.47,135.43,14.24759025]
[1765130605005,16.978864,135.51,135.46,6.18377149]
[1765130605198,0.67,135.51,135.47,6.18377149]
[1765130605398,0.67,135.51,135.48,6.18377149]
[1765130605816,7.37885345,135.53,135.48,6.86377149]
[1765130605817,0.67,135.53,135.48,6.86377149]
[1765130606016,0.67,135.52,135.46,8.2]
[1765130606224,6.18377149,135.51,135.46,8.2]
[1765130606391,6.18377149,135.51,135.47,0.5]
[1765130606595,0.67,135.5,135.47,0.5]
[1765130606794,8.05058446,135.5,135.47,0.5]
[1765130607003,6.18377149,135.49,135.47,0.5]
[1765130607194,6.18377149,135.49,135.43,0.68]
[1765130607195,0.67,135.5,135.46,6.18377149]
[1765130607621,0.67,135.52,135.48,13.56493476]
[1765130607918,0.67,135.54,135.5,6.18377149]
[1765130608122,8.0468632,135.56,135.52,6.18377149]
[1765130608295,0.67,135.55,135.52,6.18377149]
[1765130608496,0.67,135.55,135.51,14.38377149]
[1765130608699,0.67,135.55,135.52,7.37898465]
[1765130608908,0.67,135.55,135.51,21.76317397]
[1765130609216,0.67,135.57,135.52,6.18377149]
[1765130609408,0.67,135.56,135.51,15.57940248]
[1765130609615,6.85377149,135.56,135.51,21.76317397]
[1765130610115,0.67,135.55,135.51,21.76317397]
[1765130610429,0.67,135.55,135.52,6.18377149]
[1765130610722,0.67,135.55,135.51,40.89199693]
[1765130611125,0.67,135.55,135.51,22.44317397]
[1765130611308,14.231144,135.55,135.52,0.5]
[1765130611703,0.67,135.54,135.52,0.5]
[1765130612032,6.85377149,135.54,135.49,8.2]
[1765130612325,6.85377149,135.54,135.48,21.76482472]
[1765130612625,6.18377149,135.52,135.47,13.56500804]
[1765130612831,7.37952918,135.51,135.47,15.58123655]
[1765130613024,8.04952918,135.51,135.47,15.58123655]
[1765130613323,8.04952918,135.51,135.47,21.76500804]
[1765130613528,8.04952918,135.51,135.47,15.58123655]
[1765130613728,0.67,135.5,135.46,7.38215172]
[1765130613938,0.67,135.5,135.46,15.58215172]
[1765130614231,0.67,135.5,135.46,16.26215172]
[1765130615105,0.67,135.5,135.46,22.44592321]
[1765130616206,0.67,135.5,135.46,14.24592321]
[1765130616532,0.67,135.5,135.47,8.7]
[1765130617109,0.67,135.5,135.47,0.5]
[1765130617425,0.67,135.5,135.47,7.88153663]
[1765130617933,0.67,135.5,135.47,14.06530812]
[1765130618431,0.67,135.54,135.49,6.18377149]
[1765130618632,8.04790232,135.54,135.5,6.18377149]
[1765130618831,0.67,135.57,135.52,6.18377149]
[1765130619043,188.99263549,135.63,135.53,8.2]
[1765130619044,18.43570378,135.61,135.53,8.2]
[1765130619334,6.18377149,135.58,135.53,8.2]
[1765130619553,13.55905418,135.59,135.54,7.37789582]
[1765130619712,0.67,135.61,135.54,32.68640687]
[1765130619910,6.18377149,135.6,135.54,32.68640687]
[1765130620207,8.04421849,135.61,135.54,32.68640687]
[1765130620442,0.67,135.6,135.54,32.68640687]
[1765130620618,0.67,135.6,135.55,0.68]
[1765130620815,0.67,135.6,135.56,8.2]
[1765130621425,6.85377149,135.6,135.56,8.2]
[1765130621627,0.67,135.6,135.55,13.56107105]
[1765130621815,0.67,135.59,135.56,8.2]
[1765130622149,0.67,135.59,135.55,15.57692532]
[1765130622318,0.67,135.59,135.56,7.37671139]
[1765130622826,0.67,135.59,135.55,16.25722507]
[1765130623013,6.85377149,135.61,135.56,8.05664785]
[1765130623219,8.04425153,135.61,135.56,14.24041934]
[1765130623546,0.67,135.6,135.56,8.05664785]
[1765130623835,6.85377149,135.6,135.56,7.37664785]
[1765130624223,6.18377149,135.6,135.56,7.37664785]
[1765130624435,0.67,135.59,135.56,7.37664785]
[1765130624617,6.85377149,135.6,135.56,7.37664785]
[1765130624818,14.22846381,135.6,135.56,7.37664785]
[1765130625019,0.67,135.59,135.56,8.2]
[1765130625850,6.18377149,135.58,135.52,6.18377149]
[1765130626029,6.18377149,135.58,135.54,8.2]
[1765130626224,0.67,135.58,135.54,8.2]
[1765130626432,0.67,135.57,135.52,8.05881313]
[1765130626637,6.85377149,135.57,135.53,8.2]
[1765130626844,7.37680731,135.56,135.53,8.2]
[1765130627139,0.67,135.56,135.53,8.2]
[1765130627344,14.23017682,135.57,135.53,15.57838982]
[1765130627642,8.04640533,135.57,135.53,15.57838982]
[1765130627841,0.67,135.56,135.53,8.2]
[1765130629140,8.04578776,135.58,135.53,16.25791027]
[1765130629619,0.67,135.57,135.53,15.57791027]
[1765130629815,0.67,135.57,135.53,16.25791027]
[1765130630042,25.48508559,135.58,135.53,8.2]
[1765130630222,6.18377149,135.56,135.53,8.2]
[1765130630430,6.18377149,135.57,135.53,8.2]
[1765130630729,6.18377149,135.56,135.53,8.2]
[1765130630932,13.56072689,135.56,135.53,8.2]
[1765130631319,7.3769554,135.56,135.53,8.2]
[1765130631520,6.18377149,135.57,135.54,0.72]
[1765130631736,13.56019275,135.57,135.54,0.72]
[1765130631950,13.55966127,135.58,135.54,0.72]
[1765130632443,8.07588978,135.58,135.53,15.29834522]
[1765130632641,0.7,135.57,135.53,15.29834522]
[1765130633031,13.55966127,135.58,135.53,15.29834522]
[1765130633229,8.07588978,135.58,135.53,15.29834522]
[1765130633526,14.25966127,135.58,135.53,15.29834522]
[1765130633920,0.7,135.57,135.53,15.29834522]
[1765130634124,24.508864,135.62,135.56,6.18377149]
[1765130634125,16.308864,135.62,135.56,6.18377149]
[1765130634345,0.1,135.63,135.61,6.18377149]
[1765130634555,0.1,135.63,135.62,8.26]
[1765130634746,0.1,135.63,135.62,8.98]
[1765130635129,0.1,135.63,135.62,8.26]
[1765130635329,0.1,135.63,135.62,0.72]
[1765130635552,0.1,135.63,135.62,8.98]
[1765130635731,0.1,135.63,135.62,15.16377149]
[1765130636128,0.1,135.66,135.63,25.80550025]
[1765130636332,0.1,135.66,135.64,6.90377149]
[1765130636542,0.1,135.66,135.64,0.72]
[1765130636743,0.1,135.66,135.65,8.98]
[1765130637434,0.1,135.66,135.65,15.16377149]
[1765130637759,0.1,135.66,135.65,8.98]
[1765130637945,0.1,135.66,135.65,8.26]
[1765130638150,0.1,135.66,135.65,8.98]
[1765130638473,0.1,135.66,135.64,8.26]
[1765130638755,10.32680385,135.66,135.62,0.67]
[1765130638957,10.32680385,135.66,135.63,8.26]
[1765130639163,9.54680385,135.65,135.6,16.308864]
[1765130639458,9.54680385,135.62,135.56,8.04639557]
[1765130639626,9.54680385,135.62,135.55,27.98888781]
[1765130639627,9.54680385,135.59,135.54,0.67]
[1765130639831,9.54680385,135.59,135.56,16.308864]
[1765130640056,9.54680385,135.6,135.55,8.26]
[1765130640349,9.54680385,135.61,135.56,8.04680731]
[1765130640560,18.43161095,135.64,135.56,17.59361116]
[1765130640561,16.91992427,135.63,135.56,17.59361116]
[1765130640767,9.54680385,135.6,135.55,7.37722879]
[1765130640934,9.54680385,135.57,135.52,0.67]
[1765130641134,9.54680385,135.59,135.53,8.93]
[1765130641351,0.68,135.62,135.53,8.93]
[1765130641352,9.54680385,135.61,135.55,7.37731833]
[1765130641553,9.54680385,135.59,135.53,0.67]
[1765130641858,0.68,135.61,135.56,8.26]
[1765130642064,9.54680385,135.6,135.56,8.26]
[1765130642372,17.60099903,135.61,135.57,0.67]
[1765130642535,17.60099903,135.61,135.56,16.306736]
[1765130642855,17.60099903,135.61,135.57,0.5]
[1765130643068,16.92099903,135.61,135.57,0.5]
[1765130643370,10.22680385,135.61,135.58,7.37571913]
[1765130643652,10.22680385,135.61,135.57,8.54617719]
[1765130643872,9.54680385,135.58,135.54,8.26]
[1765130644074,9.54680385,135.57,135.54,8.26]
[1765130644630,10.22680385,135.57,135.53,15.63835437]
[1765130645059,0.68,135.56,135.53,15.63835437]
[1765130645359,0.68,135.57,135.53,15.63831176]
[1765130645534,0.68,135.56,135.53,7.37831176]
[1765130645736,0.68,135.56,135.53,15.63831176]
[1765130646243,17.60259364,135.58,135.53,15.63831176]
[1765130646431,0.68,135.57,135.53,15.63831176]
[1765130646754,0.68,135.57,135.53,16.30831176]
[1765130646955,16.92259364,135.58,135.53,16.30831176]
[1765130646956,0.68,135.64,135.56,9.54680385]
[1765130647165,0.68,135.64,135.59,16.978864]
[1765130647333,0.68,135.64,135.6,18.49680385]
[1765130647536,7.37217906,135.65,135.61,9.54680385]
[1765130647738,7.47150947,135.66,135.6,9.45]
[1765130647938,7.47150947,135.66,135.6,0.5]
[1765130647939,0.68,135.64,135.6,0.5]
[1765130648147,0.68,135.64,135.59,9.54680385]
[1765130648340,0.68,135.64,135.58,17.82680385]
[1765130648544,7.37300007,135.63,135.58,17.82680385]
[1765130649059,0.68,135.62,135.58,17.82680385]
[1765130649646,0.68,135.62,135.56,16.308864]
[1765130649847,10.22680385,135.62,135.57,8.28]
[1765130650059,0.68,135.62,135.57,17.82680385]
[1765130650244,0.68,135.61,135.57,8.28]
[1765130650452,7.37463126,135.6,135.57,17.82680385]
[1765130650647,0.68,135.61,135.57,17.82680385]
[1765130650849,19.11004868,135.65,135.6,9.54680385]
[1765130651167,0.68,135.64,135.59,9.54680385]
[1765130651339,0.68,135.64,135.6,8.28]
[1765130651540,0.68,135.64,135.59,8.28]
[1765130651742,7.37204656,135.65,135.6,10.21680385]
[1765130651948,8.05204656,135.65,135.6,10.21680385]
[1765130652146,0.68,135.64,135.6,10.21680385]
[1765130652644,0.68,135.64,135.61,9.54680385]
[1765130652858,0.68,135.64,135.6,17.59106774]
[1765130653166,8.1513696,135.66,135.61,0.5]
[1765130653554,0.68,135.65,135.61,0.5]
[1765130653758,8.05224242,135.65,135.61,0.5]
[1765130654065,9.54680385,135.64,135.61,0.5]
[1765130654254,10.22680385,135.64,135.61,0.5]
[1765130654451,0.68,135.63,135.59,7.37500456]
[1765130654669,0.68,135.63,135.59,15.65500456]
[1765130656772,8.05310909,135.63,135.59,15.65500456]
[1765130657849,7.37245877,135.64,135.6,0.67]
[1765130658048,8.05245877,135.64,135.6,0.5]
[1765130658293,0.68,135.64,135.6,1.17]
[1765130659151,0.68,135.64,135.6,0.5]
[1765130659366,7.37300007,135.63,135.6,0.5]
[1765130660076,9.54680385,135.61,135.6,0.5]
[1765130660381,9.54680385,135.61,135.55,8.26]
[1765130660551,9.54680385,135.58,135.55,8.26]
[1765130660875,9.54680385,135.59,135.55,8.26]
[1765130661080,0.68,135.6,135.55,16.33725219]
[1765130661255,0.68,135.59,135.55,16.33725219]
[1765130661964,17.60144814,135.6,135.55,16.33725219]
[1765130662175,0.68,135.59,135.55,16.33725219]
[1765130662373,9.54680385,135.58,135.54,15.63747986]
[1765130662570,9.54680385,135.58,135.54,8.26]
[1765130662877,0.68,135.57,135.54,15.63777863]
[1765130663178,0.68,135.57,135.55,0.5]
[1765130663379,0.68,135.57,135.54,15.63777863]
[1765130664191,0.68,135.57,135.54,8.26]
[1765130665565,8.05638294,135.57,135.54,8.26]
[1765130666391,0.68,135.56,135.51,7.37919454]
[1765130666579,10.22680385,135.56,135.51,8.26]
[1765130666903,9.54680385,135.54,135.48,8.26]
[1765130667208,0.68,135.55,135.49,10.24680385]
[1765130667527,9.54680385,135.54,135.48,8.26]
[1765130667789,0.68,135.55,135.5,9.54680385]
[1765130667998,10.22680385,135.55,135.49,36.0789301]
[1765130668293,9.54680385,135.54,135.49,25.83212625]
[1765130668462,10.22680385,135.54,135.49,25.83212625]
[1765130668664,0.68,135.53,135.49,25.83212625]
[1765130668864,10.22680385,135.53,135.49,7.38058002]
[1765130669066,0.68,135.53,135.49,7.38058002]
[1765130669282,9.54680385,135.54,135.49,7.38058002]
[1765130669483,0.68,135.52,135.49,7.38058002]
[1765130670370,0.68,135.52,135.49,25.83212625]
[1765130670581,0.68,135.54,135.49,36.0789301]
[1765130670889,0.68,135.57,135.51,9.54680385]
[1765130671189,0.68,135.57,135.52,17.80680385]
[1765130671609,0.68,135.57,135.54,7.37789582]
[1765130672002,9.54680385,135.55,135.44,37.61406085]
[1765130672202,9.54680385,135.5,135.44,16.34334317]
[1765130672400,9.54680385,135.5,135.44,32.65220717]
[1765130672584,10.22680385,135.5,135.44,32.65220717]
[1765130672789,10.22680385,135.5,135.44,51.11027259]
[1765130673000,9.54680385,135.49,135.44,51.11027259]
[1765130673514,10.22680385,135.49,135.44,51.11027259]
[1765130673809,9.54680385,135.49,135.44,51.11027259]
[1765130674001,0.68,135.48,135.44,34.10140859]
[1765130674200,10.22680385,135.48,135.44,34.10140859]
[1765130674502,0.68,135.48,135.44,34.80140859]
[1765130674703,0.68,135.5,135.45,0.7]
[1765130674882,10.22680385,135.5,135.45,0.7]
[1765130675402,0.68,135.49,135.45,0.7]
[1765130675587,0.68,135.49,135.46,25.83788571]
[1765130676122,9.54680385,135.53,135.47,8.96]
[1765130676294,10.22680385,135.53,135.47,8.96]
[1765130677111,10.22680385,135.53,135.48,0.56119948]
[1765130677319,0.68,135.53,135.48,0.56119948]
[1765130677497,9.54680385,135.54,135.48,0.56119948]
[1765130677698,10.22680385,135.55,135.49,25.83216472]
[1765130677888,10.22680385,135.55,135.5,8.26]
[1765130678516,7.37592095,135.58,135.5,8.26]
[1765130678517,9.54680385,135.58,135.51,25.85566785]
[1765130678731,0.68,135.59,135.52,9.54680385]
[1765130679027,9.54680385,135.61,135.56,16.308864]
[1765130679194,15.63264402,135.64,135.56,16.308864]
[1765130679195,16.31264402,135.64,135.57,8.26]
[1765130679396,9.54680385,135.62,135.57,8.96]
[1765130679701,9.54680385,135.62,135.59,25.81311306]
[1765130679899,0.68,135.65,135.6,8.26]
[1765130680107,9.54680385,135.65,135.6,8.96]
[1765130680287,9.54680385,135.65,135.61,0.7]
[1765130680712,0.1,135.66,135.61,0.7]